fUST/lending_fUST_20250415
["ID","MTS","AMOUNT","RATE_DAILY","PERIOD"]
[358027282,1744655297078,-1248.09,0.00045671,120]
[358027283,1744655297125,-1896.43,0.00045671,31]
[358027284,1744655297172,-1217.77,0.00045671,120]
[358027285,1744655297219,-1248.09,0.00045671,120]
[358027286,1744655297266,-1896.43,0.00045671,31]
[358027287,1744655297313,-1217.77,0.00045671,120]
[358027288,1744655297360,-1248.09,0.00045671,120]
[358027289,1744655297407,-1217.77,0.00045671,120]
[358027290,1744655297455,-1248.09,0.00045671,120]
[358027291,1744655297501,-1896.43,0.00045671,120]
[358027292,1744655297547,-1248.09,0.00045671,120]
[358027293,1744655297596,-1896.43,0.00045671,120]
[358027294,1744655297644,-1217.77,0.00045671,120]
[358027295,1744655297691,-1896.43,0.00045671,120]
[358027296,1744655297741,-1248.09,0.00045671,120]
[358027297,1744655297789,-1217.77,0.00045671,120]
[358027298,1744655297837,-1896.43,0.00045671,120]
[358027299,1744655297885,-1248.09,0.00045671,120]
[358027300,1744655297933,-1896.43,0.00045671,120]
[358027301,1744655297980,-1248.09,0.00045671,120]
[358027302,1744655298029,-1217.77,0.00045671,120]
[358027303,1744655298080,-1248.09,0.00045671,120]
[358027304,1744655298131,-1896.43,0.00045671,120]
[358027305,1744655298180,-1217.77,0.00045671,120]
[358027306,1744655298228,-1248.09,0.00045671,120]
[358027307,1744655298276,-1896.43,0.00045671,120]
[358027308,1744655298324,-1217.8811133,0.00045671,120]
[358027309,1744655298373,-1248.09,0.00045671,120]
[358027310,1744655298422,-1896.43,0.00045671,120]
[358027311,1744655298470,-1248.29793028,0.00045671,120]
[358027312,1744655298519,-1896.43,0.00045671,120]
[358027313,1744655298567,-1896.43,0.00045671,120]
[358027314,1744655298615,-1896.43,0.00045671,120]
[358027315,1744655298663,-1896.43,0.00045671,120]
[358027316,1744655298713,-1896.43,0.00045671,120]
[358027317,1744655298762,-975.28,0.00045671,31]
[358027318,1744655298809,-1896.43,0.00045671,120]
[358027319,1744655298856,-975.28,0.00045671,31]
[358027320,1744655298900,-1896.43,0.00045671,120]
[358027321,1744655298946,-975.28,0.00045671,31]
[358027322,1744655298995,-1896.43,0.00045671,120]
[358027323,1744655299046,-1896.43,0.00045671,120]
[358027324,1744655299098,-975.28,0.00045671,31]
[358027325,1744655299152,-1896.43,0.00045671,120]
[358027326,1744655299203,-975.28,0.00045671,31]
[358027327,1744655299254,-1896.43,0.00045671,120]
[358027328,1744655299303,-975.28,0.00045671,31]
[358027329,1744655299354,-1896.65865016,0.00045671,120]
[358027330,1744655299405,-975.28,0.00045671,31]
[358027331,1744655299455,-1191.52,0.00045671,31]
[358027332,1744655299504,-975.28,0.00045671,31]
[358027333,1744655299553,-1191.52,0.00045671,31]
[358027334,1744655299606,-975.28,0.00045671,31]
[358027335,1744655299655,-1191.52,0.00045671,31]
[358027336,1744655299703,-975.28,0.00045671,31]
[358027337,1744655299756,-1191.52,0.00045671,31]
[358027338,1744655299806,-975.28,0.00045671,120]
[358027339,1744655299856,-1191.52,0.00045671,120]
[358027340,1744655299905,-975.28,0.00045671,120]
[358027341,1744655299954,-975.28,0.00045671,120]
[358027342,1744655300044,-1191.52,0.00045671,120]
[358027343,1744655300093,-975.28,0.00045671,120]
[358027344,1744655300141,-1191.52,0.00045671,120]
[358027345,1744655300188,-975.28,0.00045671,120]
[358027346,1744655300234,-1191.52,0.00045671,120]
[358027347,1744655300282,-975.28,0.00045671,120]
[358027348,1744655300329,-975.28,0.00045671,120]
[358027349,1744655300379,-1191.52,0.00045671,120]
[358027350,1744655300426,-975.28,0.00045671,120]
[358027351,1744655300472,-1191.52,0.00045671,120]
[358027352,1744655300517,-975.28,0.00045671,120]
[358027353,1744655300566,-1191.52,0.00045671,120]
[358027354,1744655300612,-905.94,0.00045671,31]
[358027355,1744655300660,-975.28,0.00045671,120]
[358027356,1744655300707,-1191.52,0.00045671,120]
[358027357,1744655300755,-905.94,0.00045671,31]
[358027358,1744655300803,-975.28,0.00045671,120]
[358027359,1744655300851,-1191.52,0.00045671,120]
[358027360,1744655300900,-905.94,0.00045671,31]
[358027361,1744655300947,-1191.52,0.00045671,120]
[358027362,1744655300994,-975.28,0.00045671,120]
[358027363,1744655301042,-905.94,0.00045671,31]
[358027364,1744655301088,-1191.52,0.00045671,120]
[358027365,1744655301135,-975.28,0.00045671,120]
[358027366,1744655301181,-905.94,0.00045671,120]
[358027367,1744655301227,-1191.52,0.00045671,120]
[358027368,1744655301274,-975.32828855,0.00045671,120]
[358027369,1744655301322,-905.94,0.00045671,120]
[358027370,1744655301370,-1191.52,0.00045671,120]
[358027371,1744655301416,-905.94,0.00045671,120]
[358027372,1744655301462,-1191.52,0.00045671,120]
[358027373,1744655301510,-905.94,0.00045671,120]
[358027374,1744655301561,-1191.52,0.00045671,120]
[358027375,1744655301608,-905.94,0.00045671,120]
[358027376,1744655301655,-1191.52,0.00045671,120]
[358027377,1744655301703,-905.94,0.00045671,120]
[358027378,1744655301749,-1191.52,0.00045671,120]
[358027379,1744655301796,-905.94,0.00045671,120]
[358027380,1744655301842,-905.94,0.00045671,120]
[358027381,1744655301890,-1191.52,0.00045671,120]
[358027382,1744655301938,-500.0,0.00045671,31]
[358027383,1744655301986,-905.94,0.00045671,120]
[358027384,1744655302035,-1191.52,0.00045671,120]
[358027385,1744655302081,-500.0,0.00045671,31]
[358027386,1744655302126,-905.94,0.00045671,120]
[358027387,1744655302172,-1191.63170607,0.00045671,120]
[358027388,1744655302218,-500.0,0.00045671,31]
[358027389,1744655302267,-500.0,0.00045671,31]
[358027390,1744655302321,-905.94,0.00045671,120]
[358027391,1744655302369,-500.0,0.00045671,31]
[358027392,1744655302417,-905.94,0.00045671,120]
[358027393,1744655302463,-500.0,0.00045671,31]
[358027394,1744655302511,-905.94,0.00045671,120]
[358027395,1744655302561,-905.94,0.00045671,120]
[358027396,1744655302608,-500.0,0.00045671,31]
[358027397,1744655302655,-905.94,0.00045671,120]
[358027398,1744655302702,-349.27867913,0.00045671,31]
[358027399,1744655302751,-905.94,0.00045671,120]
[358027400,1744655302797,-905.94,0.00045671,120]
[358027401,1744655302845,-905.94,0.00045671,120]
[358027402,1744655302891,-905.94,0.00045671,120]
[358027403,1744655302938,-906.00698108,0.00045671,120]
[358027404,1744655302985,-500.0,0.00045671,31]
[358027405,1744655303034,-500.0,0.00045671,31]
[358027406,1744655303082,-812.9,0.00045671,31]
[358027407,1744655303129,-500.0,0.00045671,31]
[358027408,1744655303176,-500.0,0.00045671,31]
[358027409,1744655303220,-500.0,0.00045671,31]
[358027410,1744655303264,-500.0,0.00045671,31]
[358027411,1744655303309,-476.02566235,0.00045671,31]
[358027412,1744655303353,-812.9,0.00045671,31]
[358027413,1744655303399,-812.9,0.00045671,31]
[358027414,1744655303449,-500.0,0.00045671,31]
[358027415,1744655303497,-812.9,0.00045671,31]
[358027416,1744655303545,-1264.63,0.00045671,31]
[358027417,1744655303594,-500.0,0.00045671,31]
[358027418,1744655303642,-812.9,0.00045671,120]
[358027419,1744655303690,-500.0,0.00045671,31]
[358027420,1744655303741,-1264.63,0.00045671,31]
[358027421,1744655303793,-812.9,0.00045671,120]
[358027422,1744655303842,-500.0,0.00045671,31]
[358027423,1744655303890,-1264.63,0.00045671,31]
[358027424,1744655303938,-812.9,0.00045671,120]
[358027425,1744655303986,-500.0,0.00045671,31]
[358027426,1744655304035,-812.9,0.00045671,120]
[358027427,1744655304083,-1264.63,0.00045671,31]
[358027428,1744655304130,-500.0,0.00045671,31]
[358027429,1744655304177,-569.42669908,0.00045671,31]
[358027430,1744655304224,-1264.63,0.00045671,120]
[358027431,1744655304272,-812.9,0.00045671,120]
[358027432,1744655304322,-500.0,0.00045671,120]
[358027433,1744655304373,-1264.63,0.00045671,120]
[358027434,1744655304424,-812.9,0.00045671,120]
[358027435,1744655304473,-500.0,0.00045671,120]
[358027436,1744655304521,-500.0,0.00045671,120]
[358027437,1744655304567,-812.9,0.00045671,120]
[358027438,1744655304615,-500.0,0.00045671,120]
[358027439,1744655304663,-812.9,0.00045671,120]
[358027440,1744655304710,-1264.63,0.00045671,120]
[358027441,1744655304758,-500.0,0.00045671,120]
[358027442,1744655304806,-812.9,0.00045671,120]
[358027443,1744655304854,-1264.63,0.00045671,120]
[358027444,1744655304901,-500.0,0.00045671,120]
[358027445,1744655304948,-1264.63,0.00045671,120]
[358027446,1744655304996,-812.9,0.00045671,120]
[358027447,1744655305044,-500.0,0.00045671,120]
[358027448,1744655305093,-1264.63,0.00045671,120]
[358027449,1744655305142,-812.9,0.00045671,120]
[358027450,1744655305190,-500.0,0.00045671,120]
[358027451,1744655305239,-1264.63,0.00045671,120]
[358027452,1744655305286,-812.9,0.00045671,120]
[358027453,1744655305333,-16.54443347,0.00045671,120]
[358027500,1744655432349,-300.0,0.00024999,2]
[358027502,1744655432359,-26267.9387751,0.00025,2]
[358027639,1744655438479,-500.0,0.00024999,2]
[358027641,1744655438488,-475.98136771,0.00024999,2]
[358027643,1744655438498,-168.60478842,0.00024999,2]
[358027645,1744655438508,-500.0,0.00024999,2]
[358027647,1744655438517,-500.0,0.00024999,2]
[358027649,1744655438527,-245.44756753,0.00024999,2]
[358027650,1744655438536,-500.0,0.00024999,2]
[358027652,1744655438546,-500.0,0.00024999,2]
[358027655,1744655438556,-500.0,0.00024999,2]
[358027657,1744655438566,-500.0,0.00024999,2]
[358027659,1744655438575,-500.0,0.00024999,2]
[358027661,1744655438585,-500.0,0.00024999,2]
[358027663,1744655438595,-500.0,0.00024999,2]
[358027665,1744655438608,-500.0,0.00024999,2]
[358027667,1744655438619,-531.50982016,0.00024999,2]
[358027669,1744655438629,-500.0,0.00024999,2]
[358027671,1744655438638,-500.0,0.00024999,2]
[358027673,1744655438649,-500.0,0.00024999,2]
[358027675,1744655438659,-500.0,0.00024999,2]
[358027677,1744655438668,-500.0,0.00024999,2]
[358027679,1744655438678,-500.0,0.00024999,2]
[358027681,1744655438689,-500.0,0.00024999,2]
[358027683,1744655438698,-500.0,0.00024999,2]
[358027685,1744655438708,-500.0,0.00024999,2]
[358027687,1744655438718,-6338.50875452,0.00025,2]
[358027689,1744655438728,-3671.56746682,0.00025,2]
[358027692,1744655438739,-58294.18381018,0.00025,2]
[358027694,1744655438749,-171.97032368,0.00025,2]
[358027696,1744655438760,-166.4509017,0.00025762,2]
[358027698,1744655438769,-250.0,0.00025849,2]
[358027700,1744655438779,-576.74191406,0.0002642,2]
[358027702,1744655438789,-190.40272788,0.00026644,2]
[358027704,1744655438799,-500.0,0.00026644,2]
[358027706,1744655438809,-500.0,0.00026644,2]
[358027708,1744655438819,-564.97741482,0.00026644,2]
[358027710,1744655438828,-24900.0,0.00026645,2]
[358027712,1744655438838,-152.0,0.00026689,2]
[358027714,1744655438848,-246.9438,0.00027,120]
[358027716,1744655438858,-420.0,0.00027205,2]
[358027718,1744655438867,-500.0,0.00027397,5]
[358027720,1744655438876,-160.0,0.00027659,7]
[358027722,1744655438887,-476.50603043,0.00027699,2]
[358027724,1744655438896,-29575.11466807,0.000277,2]
[358027726,1744655438906,-267.82087873,0.0002778,2]
[358027728,1744655438916,-964.6661937,0.00027944,2]
[358027730,1744655438926,-500.0,0.00027973,5]
[358027732,1744655438936,-446.65900259,0.00027973,5]
[358027734,1744655438946,-500.0,0.00027973,5]
[358027737,1744655438956,-300.45523858,0.00027973,5]
[358027739,1744655438965,-282.70318792,0.00027973,5]
[358027741,1744655438976,-500.0,0.00027973,5]
[358027743,1744655438985,-500.0,0.00027973,5]
[358027745,1744655438995,-2463.43104223,0.0002798,2]
[358027747,1744655439004,-1000.0,0.00027989,10]
[358027749,1744655439014,-2463.43104223,0.0002799,2]
[358027751,1744655439025,-32400.29111164,0.0002799,2]
[358027753,1744655439034,-1186.51591635,0.0002799,7]
[358027755,1744655439044,-160.0,0.00028,3]
[358027757,1744655439054,-45000.0,0.00028,3]
[358027759,1744655439064,-160.0,0.00028,3]
[358027761,1744655439073,-894.29581808,0.00028,2]
[358027763,1744655439083,-818.34339715,0.00028,2]
[358027765,1744655439092,-838.51730609,0.00028,3]
[358027767,1744655439101,-160.0,0.00028,3]
[358027769,1744655439112,-649.206255,0.00028001,2]
[358027771,1744655439123,-152.82,0.000283,31]
[358027773,1744655439133,-152.82,0.000283,31]
[358027775,1744655439142,-152.82,0.000283,31]
[358027777,1744655439152,-152.82,0.000283,31]
[358027779,1744655439161,-152.82,0.000283,31]
[358027781,1744655439170,-152.82,0.000283,31]
[358027783,1744655439180,-152.82,0.000283,31]
[358027785,1744655439189,-152.82,0.000283,31]
[358027787,1744655439199,-152.82,0.000283,31]
[358027789,1744655439209,-152.82,0.000283,31]
[358027791,1744655439218,-1574.5146828,0.000285,7]
[358027793,1744655439228,-160.0,0.000287,3]
[358027795,1744655439237,-160.0,0.00028713,2]
[358027797,1744655439247,-160.0,0.00028713,2]
[358027799,1744655439256,-198.99467541,0.00028973,5]
[358027801,1744655439265,-500.0,0.00028973,5]
[358027803,1744655439275,-503.54412412,0.00028973,5]
[358027805,1744655439284,-606.87818694,0.00028973,5]
[358027807,1744655439294,-501.46857729,0.00028973,5]
[358027809,1744655439304,-500.0,0.00028973,5]
[358027811,1744655439313,-500.0,0.00028973,4]
[358027813,1744655439323,-536.51387392,0.00028973,5]
[358027815,1744655439332,-500.0,0.00028973,5]
[358027817,1744655439342,-500.0,0.00028973,5]
[358027819,1744655439352,-500.0,0.00028973,5]
[358027821,1744655439362,-500.0,0.00028973,5]
[358027823,1744655439373,-500.0,0.00028973,2]
[358027825,1744655439383,-500.0,0.00028973,5]
[358027827,1744655439392,-500.0,0.00028973,5]
[358027829,1744655439402,-500.0,0.00028973,5]
[358027831,1744655439412,-9909.37852971,0.0002898,2]
[358027835,1744655439437,-7334.63876589,0.0002898,2]
[358027837,1744655439447,-13939.18666287,0.0002899,2]
[358027840,1744655439459,-12306.50559226,0.0002899,2]
[358027843,1744655439483,-852.04920937,0.0002899,2]
[358027845,1744655439493,-345.84652466,0.00028999,2]
[358027936,1744655440576,-154.15347534,0.00028999,2]
[358027938,1744655440587,-180.0294725,0.00028999,10]
[358027940,1744655440600,-340.365,0.00028999,10]
[358027943,1744655440618,-479.6055275,0.00028999,10]
[358027945,1744655440629,-1000.0,0.00028999,10]
[358027947,1744655440638,-1000.0,0.00028999,10]
[358027949,1744655440649,-1573.61570976,0.00029,7]
[358028242,1744655443430,-3097.49491422,0.00029,7]
[358028244,1744655443442,-19256.23503934,0.00029,7]
[358029348,1744655479141,-511.075,0.00029,7]
[358029349,1744655479154,-58541.63011354,0.00029,7]
[358029350,1744655479169,-82980.05077686,0.00029,7]
[358029351,1744655479181,-230882.57505384,0.00029,7]
[358029352,1744655479194,-2036.63746869,0.00029,7]
[358029435,1744656632522,-1144.1243284,0.00025547,2]
[358029437,1744656632533,-300.0,0.00025767,2]
[358029439,1744656632543,-20577.8335814,0.00025768,2]
[358029441,1744656632553,-5238.8486834,0.00025785,2]
[358029443,1744656632564,-9580.8332018,0.00026615,2]
[358029445,1744656632574,-485.99729353,0.00026668,2]
[358029447,1744656632583,-250.0,0.00026678,2]
[358029449,1744656632593,-1000.0,0.00026731,2]
[358029451,1744656632602,-250.0,0.00026731,2]
[358029454,1744656632612,-40776.07196105,0.00026776,2]
[358029456,1744656632621,-152.0,0.00026785,2]
[358029459,1744656632631,-500.0,0.0002683,2]
[358029462,1744656632640,-18640.9845167,0.0002683,2]
[358029465,1744656632651,-1237.49999775,0.0002683,2]
[358030035,1744656638821,-2804.3551033,0.00026567,2]
[358030038,1744656638832,-23801.52385818,0.0002683,2]
[358030040,1744656638842,-257.92785511,0.0002683,2]
[358030042,1744656638852,-500.0,0.0002683,2]
[358030044,1744656638861,-482.53664572,0.0002683,2]
[358030046,1744656638872,-176.50603043,0.0002683,2]
[358030048,1744656638882,-500.0,0.0002683,2]
[358030050,1744656638892,-500.0,0.0002683,2]
[358030052,1744656638902,-500.0,0.0002683,2]
[358030054,1744656638913,-500.0,0.0002683,2]
[358030056,1744656638923,-508.04928626,0.0002683,2]
[358030058,1744656638933,-500.0,0.0002683,2]
[358030060,1744656638942,-500.0,0.0002683,2]
[358030062,1744656638952,-500.0,0.0002683,2]
[358030064,1744656638962,-500.0,0.0002683,2]
[358030066,1744656638971,-500.0,0.0002683,2]
[358030068,1744656638981,-500.0,0.0002683,2]
[358030070,1744656638991,-400.37425107,0.0002683,2]
[358030072,1744656639004,-500.0,0.0002683,2]
[358030074,1744656639014,-500.0,0.0002683,2]
[358030076,1744656639023,-500.0,0.0002683,2]
[358030078,1744656639033,-500.0,0.0002683,2]
[358030080,1744656639045,-500.0,0.0002683,2]
[358030082,1744656639054,-500.0,0.0002683,2]
[358030084,1744656639064,-500.0,0.0002683,2]
[358030086,1744656639075,-500.0,0.0002683,2]
[358030088,1744656639085,-500.0,0.0002683,2]
[358030090,1744656639095,-500.0,0.0002683,2]
[358030092,1744656639105,-500.0,0.0002683,2]
[358030094,1744656639114,-500.0,0.0002683,2]
[358030095,1744656639123,-500.0,0.0002683,2]
[358030097,1744656639133,-500.0,0.0002683,2]
[358030099,1744656639142,-500.0,0.0002683,2]
[358030101,1744656639152,-500.0,0.0002683,2]
[358030103,1744656639162,-500.0,0.0002683,2]
[358030105,1744656639173,-500.0,0.0002683,2]
[358030107,1744656639183,-500.0,0.0002683,2]
[358030110,1744656639194,-500.0,0.0002683,2]
[358030112,1744656639205,-500.0,0.0002683,2]
[358030114,1744656639215,-500.0,0.0002683,2]
[358030116,1744656639225,-500.0,0.0002683,2]
[358030118,1744656639235,-500.0,0.0002683,2]
[358030120,1744656639245,-500.0,0.0002683,2]
[358030121,1744656639254,-500.0,0.0002683,2]
[358030123,1744656639265,-500.0,0.0002683,2]
[358030124,1744656639275,-500.0,0.0002683,2]
[358030125,1744656639285,-500.0,0.0002683,2]
[358030126,1744656639295,-500.0,0.0002683,2]
[358030127,1744656639305,-500.0,0.0002683,2]
[358030128,1744656639315,-500.0,0.0002683,2]
[358030129,1744656639325,-500.0,0.0002683,2]
[358030130,1744656639335,-500.0,0.0002683,2]
[358030131,1744656639344,-500.0,0.0002683,2]
[358030132,1744656639354,-500.0,0.0002683,2]
[358030133,1744656639364,-500.0,0.0002683,2]
[358030134,1744656639373,-500.0,0.0002683,2]
[358030135,1744656639383,-500.0,0.0002683,2]
[358030136,1744656639392,-500.0,0.0002683,2]
[358030137,1744656639402,-500.0,0.0002683,2]
[358030138,1744656639412,-500.0,0.0002683,2]
[358030139,1744656639422,-500.0,0.0002683,2]
[358030140,1744656639432,-500.0,0.0002683,2]
[358030142,1744656639442,-500.0,0.0002683,2]
[358030144,1744656639452,-500.0,0.0002683,2]
[358030147,1744656639463,-500.0,0.0002683,2]
[358030149,1744656639473,-253.570441,0.0002683,2]
[358030151,1744656639484,-500.0,0.0002683,2]
[358030153,1744656639494,-500.0,0.0002683,2]
[358030155,1744656639503,-500.0,0.0002683,2]
[358030157,1744656639514,-500.0,0.0002683,2]
[358030159,1744656639524,-500.0,0.0002683,2]
[358030161,1744656639534,-500.0,0.0002683,2]
[358030162,1744656639544,-500.0,0.0002683,2]
[358030165,1744656639554,-500.0,0.0002683,2]
[358030167,1744656639564,-500.0,0.0002683,2]
[358030169,1744656639574,-500.0,0.0002683,2]
[358030171,1744656639584,-500.0,0.0002683,2]
[358030172,1744656639594,-500.0,0.0002683,2]
[358030173,1744656639604,-500.0,0.0002683,2]
[358030174,1744656639613,-500.0,0.0002683,2]
[358030175,1744656639623,-500.0,0.0002683,2]
[358030176,1744656639632,-500.0,0.0002683,2]
[358030177,1744656639642,-500.0,0.0002683,2]
[358030178,1744656639654,-500.0,0.0002683,2]
[358030179,1744656639675,-839.12313064,0.0002683,2]
[358030180,1744656639684,-839.12313064,0.0002683,2]
[358030181,1744656639694,-839.12313064,0.0002683,2]
[358030182,1744656639703,-839.12313064,0.0002683,2]
[358030183,1744656639713,-839.12313064,0.0002683,2]
[358030184,1744656639723,-839.12313064,0.0002683,2]
[358030185,1744656639733,-839.12313064,0.0002683,2]
[358030186,1744656639742,-839.12313064,0.0002683,2]
[358030188,1744656639753,-839.12313064,0.0002683,2]
[358030189,1744656639770,-839.12313064,0.0002683,2]
[358030191,1744656639780,-839.12313064,0.0002683,2]
[358030193,1744656639789,-839.12313064,0.0002683,2]
[358030195,1744656639799,-839.12313064,0.0002683,2]
[358030197,1744656639808,-839.12313064,0.0002683,2]
[358030199,1744656639818,-839.12313064,0.0002683,2]
[358030201,1744656639828,-839.12313064,0.0002683,2]
[358030203,1744656639838,-839.12313064,0.0002683,2]
[358030205,1744656639848,-839.12313064,0.0002683,2]
[358030206,1744656639859,-839.12313064,0.0002683,2]
[358030208,1744656639869,-839.12313064,0.0002683,2]
[358030210,1744656639879,-839.12313064,0.0002683,2]
[358030212,1744656639889,-839.12313064,0.0002683,2]
[358030214,1744656639899,-839.12313064,0.0002683,2]
[358030216,1744656639909,-839.12313064,0.0002683,2]
[358030218,1744656639918,-839.12313064,0.0002683,2]
[358030247,1744656640161,-839.12313064,0.0002683,2]
[358030250,1744656640196,-839.12313064,0.0002683,2]
[358030253,1744656640207,-839.12313064,0.0002683,2]
[358030254,1744656640220,-839.12313064,0.0002683,2]
[358030256,1744656640230,-839.12313064,0.0002683,2]
[358030259,1744656640242,-839.12313064,0.0002683,2]
[358030261,1744656640252,-839.12313064,0.0002683,2]
[358030263,1744656640261,-839.12313064,0.0002683,2]
[358030265,1744656640271,-839.12313064,0.0002683,2]
[358030267,1744656640281,-839.12313064,0.0002683,2]
[358030269,1744656640291,-839.12313064,0.0002683,2]
[358030271,1744656640302,-839.12313064,0.0002683,2]
[358030272,1744656640312,-839.12313064,0.0002683,2]
[358030274,1744656640322,-839.12313064,0.0002683,2]
[358030276,1744656640332,-839.12313064,0.0002683,2]
[358030278,1744656640342,-839.12313064,0.0002683,2]
[358030280,1744656640351,-839.12313068,0.0002683,2]
[358030282,1744656640361,-839.12313068,0.0002683,2]
[358030284,1744656640371,-164.369302,0.00026831,2]
[358030286,1744656640380,-500.0,0.00026873,2]
[358030288,1744656640390,-500.0,0.00026873,2]
[358030290,1744656640400,-502.07270695,0.00026873,2]
[358030292,1744656640409,-500.0,0.00026873,2]
[358030294,1744656640419,-500.0,0.00026873,2]
[358030296,1744656640429,-503.44686727,0.00026873,2]
[358030298,1744656640439,-500.0,0.00026873,2]
[358030300,1744656640449,-200.42252111,0.00026873,2]
[358030302,1744656640458,-500.0,0.00026873,2]
[358030304,1744656640468,-500.0,0.00026873,2]
[358030306,1744656640478,-467.32357518,0.00026873,2]
[358030308,1744656640489,-335.53007672,0.00026873,2]
[358030311,1744656640498,-500.0,0.00026873,2]
[358030313,1744656640508,-500.0,0.00026873,2]
[358030314,1744656640518,-500.0,0.00026873,2]
[358030316,1744656640527,-534.98308746,0.00026873,2]
[358030318,1744656640537,-500.0,0.00026873,2]
[358030320,1744656640547,-500.0,0.00026873,2]
[358030323,1744656640556,-418.71206747,0.00026873,2]
[358030324,1744656640566,-500.0,0.00026873,2]
[358030327,1744656640576,-204.11482126,0.00026873,2]
[358030329,1744656640586,-466.04165321,0.00026873,2]
[358030331,1744656640595,-503.03549967,0.00026873,2]
[358030333,1744656640605,-500.0,0.00026873,2]
[358030334,1744656640615,-500.0,0.00026873,2]
[358030336,1744656640625,-500.0,0.00026873,2]
[358030338,1744656640634,-503.4036794,0.00026873,2]
[358030340,1744656640644,-222.45734504,0.00026873,2]
[358030342,1744656640653,-169.98019023,0.00026873,2]
[358030344,1744656640663,-500.0,0.00026873,2]
[358030346,1744656640672,-500.0,0.00026873,2]
[358030348,1744656640682,-500.0,0.00026873,2]
[358030350,1744656640691,-164.369302,0.00026876,2]
[358030352,1744656640701,-5667.26631316,0.000269,7]
[358030354,1744656640712,-151.0,0.00026903,2]
[358030356,1744656640722,-500.0,0.00026908,2]
[358030358,1744656640732,-500.0,0.00026908,2]
[358030360,1744656640742,-500.0,0.00026908,2]
[358030362,1744656640751,-500.0,0.00026908,2]
[358030364,1744656640761,-500.0,0.00026908,2]
[358030366,1744656640771,-595.48419037,0.00026908,2]
[358030368,1744656640781,-500.0,0.00026908,2]
[358030370,1744656640791,-500.0,0.00026908,2]
[358030372,1744656640801,-500.0,0.00026908,2]
[358030374,1744656640811,-500.0,0.00026908,2]
[358030376,1744656640821,-500.0,0.00026908,2]
[358030378,1744656640831,-500.0,0.00026908,2]
[358030380,1744656640841,-500.0,0.00026908,2]
[358030382,1744656640850,-170.6134326,0.00026908,2]
[358030384,1744656640860,-139254.420002,0.00026909,2]
[358030386,1744656640869,-364.23745448,0.00026909,2]
[358030388,1744656640878,-164.369302,0.00026921,2]
[358030390,1744656640889,-164.369302,0.00026965,2]
[358030392,1744656640898,-500.0,0.00026973,2]
[358030394,1744656640908,-500.0,0.00026973,2]
[358030396,1744656640920,-584.72097184,0.00026973,2]
[358030398,1744656640929,-501.03803269,0.00026973,2]
[358030400,1744656640940,-500.0,0.00026973,2]
[358030402,1744656640949,-160.15147435,0.00026973,2]
[358030404,1744656640959,-504.38790424,0.00026973,2]
[358030406,1744656640968,-500.0,0.00026973,2]
[358030408,1744656640978,-160.14926131,0.00026973,2]
[358030410,1744656640988,-500.0,0.00026973,2]
[358030413,1744656641003,-500.0,0.00026973,2]
[358030415,1744656641015,-500.0,0.00026973,2]
[358030417,1744656641026,-500.0,0.00026973,2]
[358030419,1744656641035,-500.0,0.00026973,2]
[358030421,1744656641046,-500.0,0.00026973,2]
[358030423,1744656641056,-500.0,0.00026973,2]